bitfinex-derivatives/quotes_BTCF0:USTF0_20250811
["timestamp","ask_amount","ask_price","bid_price","bid_amount"]
[1754897065650,1.07773254,121880.0,121870.0,1.2340447]
[1754897065853,1.07773254,121880.0,121870.0,0.97781963]
[1754897066042,2.12129035,121880.0,121870.0,0.89575993]
[1754897066246,1.07773254,121880.0,121870.0,0.97781963]
[1754897066447,1.83137254,121880.0,121870.0,0.97781963]
[1754897066650,1.83137254,121880.0,121870.0,0.52542963]
[1754897066947,1.83137254,121880.0,121870.0,0.33404258]
[1754897067148,1.83137254,121880.0,121870.0,0.33410093]
[1754897068358,1.83137254,121880.0,121870.0,0.25204123]
[1754897068550,1.83137254,121880.0,121870.0,0.20443123]
[1754897068751,1.07773254,121880.0,121870.0,0.28649113]
[1754897069058,2.12125035,121880.0,121870.0,0.20443123]
[1754897069447,2.12125035,121880.0,121870.0,0.39581828]
[1754897070647,2.12125035,121880.0,121870.0,0.20443123]
[1754897070944,2.12125035,121880.0,121870.0,0.28649113]
[1754897071256,2.12125035,121880.0,121870.0,0.20443123]
[1754897072960,2.12125035,121880.0,121870.0,0.39581828]
[1754897073558,1.83133254,121880.0,121870.0,0.44342828]
[1754897074061,1.07773254,121880.0,121870.0,0.44342828]
[1754897074262,0.42518473,121880.0,121870.0,0.54806063]
[1754897074550,1.53958473,121880.0,121870.0,0.62014063]
[1754897075659,1.82950254,121880.0,121870.0,0.62014063]
[1754897075856,1.07590254,121880.0,121870.0,0.62014063]
[1754897076052,1.82950254,121880.0,121870.0,0.25204123]
[1754897076358,1.83133254,121880.0,121870.0,0.25204123]
[1754897076546,1.07773254,121880.0,121870.0,0.25204123]
[1754897076750,1.83133254,121880.0,121870.0,0.25204123]
[1754897078859,1.83133254,121880.0,121870.0,0.36610053]
[1754897079060,1.07590254,121880.0,121870.0,0.61322053]
[1754897079262,1.82950254,121880.0,121870.0,0.61322053]
[1754897079553,1.83133254,121880.0,121870.0,0.61322053]
[1754897079956,1.83133254,121880.0,121870.0,0.76704775]
[1754897080357,1.07773254,121880.0,121870.0,0.49021775]
[1754897080553,1.83133254,121880.0,121870.0,0.49021775]
[1754897080960,1.07773254,121880.0,121870.0,0.49021775]
[1754897081162,1.83133254,121880.0,121870.0,0.49021775]
[1754897084160,1.83133254,121880.0,121870.0,0.25433123]
[1754897085160,1.83133254,121880.0,121870.0,0.49009771]
[1754897089269,1.07773254,121880.0,121870.0,0.49009771]
[1754897089468,1.83133254,121880.0,121870.0,0.49009771]
[1754897089768,1.83133254,121880.0,121870.0,0.68165504]
[1754897090966,1.83133254,121880.0,121870.0,0.49009771]
[1754897091267,1.83133254,121880.0,121870.0,0.25433123]
[1754897092271,1.07773254,121880.0,121870.0,0.25433123]
[1754897092671,1.83129254,121880.0,121870.0,0.25433123]
[1754897095678,1.83125254,121880.0,121870.0,0.44588856]
[1754897095974,1.07773254,121880.0,121870.0,0.44588856]
[1754897096181,1.83125254,121880.0,121870.0,0.44588856]
[1754897096384,1.83125254,121880.0,121870.0,0.47788856]
[1754897096682,0.52943473,121880.0,121870.0,0.80706776]
[1754897096983,0.08658173,121880.0,121870.0,0.99270394]
[1754897097185,0.84010173,121880.0,121870.0,1.28614192]
[1754897097487,0.92215413,121880.0,121870.0,0.99622411]
[1754897097674,1.00241413,121880.0,121870.0,0.99622411]
[1754897098583,0.92215413,121880.0,121870.0,0.99622411]
[1754897099384,0.92215413,121880.0,121870.0,0.70278613]
[1754897099580,0.08658173,121880.0,121870.0,0.99270394]
[1754897099780,0.2462506,121890.0,121870.0,2.18172224]
[1754897099991,0.26655447,121890.0,121880.0,0.93685256]
[1754897100181,0.26645447,121890.0,121880.0,0.93685256]
[1754897100382,0.26645447,121890.0,121880.0,1.15216554]
[1754897100582,0.26645447,121890.0,121880.0,1.23421345]
[1754897100778,0.02030387,121890.0,121880.0,1.59508238]
[1754897100977,1.06388781,121900.0,121880.0,1.59508238]
[1754897101283,1.06388781,121900.0,121890.0,0.4110657]
[1754897101483,1.06378781,121900.0,121890.0,0.70098351]
[1754897101783,0.16663603,121900.0,121890.0,0.91225214]
[1754897102079,0.16663603,121900.0,121890.0,0.99429332]
[1754897102278,0.16863603,121900.0,121890.0,0.99429332]
[1754897102478,0.16863603,121900.0,121890.0,1.49429332]
[1754897102882,0.16863603,121900.0,121890.0,2.41176532]
[1754897103082,0.16863603,121900.0,121890.0,1.65836532]
[1754897103387,0.08659293,121900.0,121890.0,1.65836532]
[1754897103679,0.08659293,121900.0,121890.0,2.41176532]
[1754897103890,0.06621671,121900.0,121890.0,2.77256532]
[1754897104580,0.06421671,121900.0,121890.0,2.77256532]
[1754897104772,0.003,121900.0,121890.0,2.77256532]
[1754897105573,0.06744626,121900.0,121890.0,2.77256532]
[1754897106282,0.06744626,121900.0,121890.0,3.00775234]
[1754897106686,0.06744626,121900.0,121890.0,2.84368034]
[1754897107489,0.06744626,121900.0,121890.0,3.00775234]
[1754897107792,0.00016381,121910.0,121900.0,0.405129]
[1754897108083,0.51101851,121920.0,121900.0,1.97324071]
[1754897108289,0.53158013,121920.0,121910.0,0.88600709]
[1754897108582,0.02056162,121920.0,121910.0,1.24680709]
[1754897108887,1.2316562,121930.0,121910.0,1.62184945]
[1754897109081,0.1641476,121930.0,121920.0,0.7659155]
[1754897109279,0.1640476,121930.0,121920.0,0.76600481]
[1754897109488,0.4454176,121930.0,121920.0,0.97508941]
[1754897109688,1.26879203,121930.0,121920.0,1.0571104]
[1754897110489,1.26879203,121930.0,121920.0,1.24780402]
[1754897110892,0.93793203,121930.0,121920.0,1.24780402]
[1754897111184,0.43514203,121930.0,121920.0,1.24780402]
[1754897111384,0.36673203,121930.0,121920.0,1.24780402]
[1754897112788,0.43514203,121930.0,121920.0,1.24780402]
[1754897112991,0.50201305,121930.0,121920.0,1.24780402]
[1754897113991,0.50201305,121930.0,121920.0,1.0571104]
[1754897114989,0.53289305,121930.0,121920.0,1.0571104]
[1754897115191,1.33554305,121930.0,121920.0,1.0571104]
[1754897115390,1.33754305,121930.0,121920.0,1.0571104]
[1754897115888,1.28805305,121930.0,121920.0,1.0571104]
[1754897117289,1.33754305,121930.0,121920.0,1.0571104]
[1754897118090,1.28805305,121930.0,121920.0,1.0571104]
[1754897119487,1.33754305,121930.0,121920.0,1.0571104]
[1754897119682,1.25351875,121930.0,121920.0,1.0571104]
[1754897119890,1.25451875,121930.0,121920.0,1.0571104]
[1754897122396,1.25451875,121930.0,121920.0,1.24780402]
[1754897123291,1.25451875,121930.0,121920.0,0.84268852]
[1754897123491,0.79127656,121930.0,121920.0,0.83935844]
[1754897123793,0.79127656,121930.0,121920.0,0.64866482]
[1754897124295,1.54431656,121930.0,121920.0,0.64866482]
[1754897124792,1.54431656,121930.0,121920.0,0.69743482]
[1754897125693,0.79127656,121930.0,121920.0,0.69743482]
[1754897125993,1.54431656,121930.0,121920.0,0.33663482]
[1754897126294,1.90511656,121930.0,121920.0,0.33663482]
[1754897126599,1.15207656,121930.0,121920.0,0.20583812]
[1754897126786,1.90511656,121930.0,121920.0,0.20583812]
[1754897127593,1.90511656,121930.0,121920.0,0.28786472]
[1754897127795,1.15207656,121930.0,121920.0,0.28786472]
[1754897128096,1.90511656,121930.0,121920.0,0.33663472]
[1754897128493,1.90511656,121930.0,121920.0,0.20583812]
[1754897128696,1.90507656,121930.0,121920.0,0.20583812]
[1754897129894,1.90511656,121930.0,121920.0,0.20583812]
[1754897130500,1.15207656,121930.0,121920.0,0.20583812]
[1754897130702,1.90511656,121930.0,121920.0,0.20583812]
[1754897132000,0.08847545,121930.0,121920.0,1.26167253]
[1754897132197,0.92349535,121930.0,121920.0,1.54501768]
[1754897132696,0.84147545,121930.0,121920.0,1.54501768]
[1754897133202,0.92349535,121930.0,121920.0,1.54501768]
[1754897133402,0.92349535,121930.0,121920.0,1.35432406]
[1754897134197,0.08847545,121930.0,121920.0,1.35432406]
[1754897134403,0.92349535,121930.0,121920.0,1.35432406]
[1754897134901,1.00522535,121930.0,121920.0,1.35432406]
[1754897135495,1.07263535,121930.0,121920.0,1.35432406]
[1754897135797,1.07263535,121930.0,121920.0,1.54579188]
[1754897135998,1.07263535,121930.0,121920.0,1.54679188]
[1754897136791,1.07263535,121930.0,121920.0,1.25687407]
[1754897136992,0.50127535,121930.0,121920.0,1.06540625]
[1754897137197,1.25423535,121930.0,121920.0,1.06540625]
[1754897137596,0.79119316,121930.0,121920.0,0.91806625]
[1754897137801,1.54415316,121930.0,121920.0,0.91806625]
[1754897138102,1.54415316,121930.0,121920.0,1.06762625]
[1754897139606,1.25423535,121930.0,121920.0,1.06762625]
[1754897140305,1.25423535,121930.0,121920.0,1.30281327]
[1754897140503,1.25423535,121930.0,121920.0,0.96370174]
[1754897140804,0.50127535,121930.0,121920.0,1.15670174]
[1754897141004,1.25419535,121930.0,121920.0,1.15670174]
[1754897141201,1.25419535,121930.0,121920.0,0.85076174]
[1754897141404,1.13775535,121930.0,121920.0,1.21156174]
[1754897141605,0.45483535,121930.0,121920.0,1.21156174]
[1754897141809,1.20775535,121930.0,121920.0,1.21156174]
[1754897142010,0.22428535,121930.0,121920.0,1.59387449]
[1754897142310,0.92237535,121930.0,121920.0,1.59387449]
[1754897142508,0.08747545,121930.0,121920.0,1.59387449]
[1754897142709,0.399482,121940.0,121920.0,2.31441349]
[1754897142914,0.02024648,121940.0,121930.0,1.25064984]
[1754897143110,0.02014648,121940.0,121930.0,1.25064984]
[1754897143310,0.9990142,121950.0,121930.0,1.47619027]
[1754897143507,0.4967442,121950.0,121940.0,1.05913091]
[1754897143712,1.2495242,121950.0,121940.0,1.05913091]
[1754897143913,1.2827842,121950.0,121940.0,0.89153421]
[1754897144116,1.2827842,121950.0,121940.0,0.97354511]
[1754897145307,1.30277244,121950.0,121940.0,1.16505724]
[1754897145714,0.61773281,121950.0,121940.0,1.16505724]
[1754897146017,1.37257281,121950.0,121940.0,1.16505724]
[1754897147315,0.61973281,121950.0,121940.0,1.25390135]
[1754897147513,0.61973281,121950.0,121940.0,0.89310135]
[1754897147514,1.71048062,121950.0,121940.0,0.89310135]
[1754897147716,1.71048062,121950.0,121940.0,1.25390135]
[1754897148412,1.71048062,121950.0,121940.0,0.56670135]
[1754897148721,1.71048062,121950.0,121940.0,0.47785724]
[1754897149019,1.71048062,121950.0,121940.0,0.39584414]
[1754897149211,2.07128062,121950.0,121940.0,0.39584414]
[1754897150114,2.07128062,121950.0,121940.0,0.20433201]
[1754897150515,1.31848062,121950.0,121940.0,0.20433201]
[1754897150717,2.07124062,121950.0,121940.0,0.20433201]
[1754897151215,2.07124062,121950.0,121940.0,0.15433201]
[1754897151417,2.23524862,121950.0,121940.0,0.00671201]
[1754897151626,2.23524862,121950.0,121940.0,0.13045915]
[1754897152818,1.48248862,121950.0,121940.0,0.13045915]
[1754897153020,2.23524862,121950.0,121940.0,0.13045915]
[1754897153624,1.31848062,121950.0,121940.0,0.13045915]
[1754897153824,2.07124062,121950.0,121940.0,0.13045915]
[1754897155920,0.61973281,121950.0,121940.0,0.30729915]
[1754897156120,1.37245281,121950.0,121940.0,0.53887255]
[1754897156321,1.66237062,121950.0,121940.0,0.64821494]
[1754897156522,1.66237062,121950.0,121940.0,0.73022834]
[1754897156720,1.66241062,121950.0,121940.0,0.64821494]
[1754897156922,2.02321062,121950.0,121940.0,0.36864494]
[1754897157519,2.02321062,121950.0,121940.0,0.45282494]
[1754897157715,2.02321062,121950.0,121940.0,0.32181494]
[1754897158213,1.27045062,121950.0,121940.0,0.32181494]
[1754897158417,2.02317062,121950.0,121940.0,0.32181494]
[1754897158618,2.02317062,121950.0,121940.0,0.13045915]
[1754897160027,2.02317062,121950.0,121940.0,0.36864494]
[1754897162028,1.73325281,121950.0,121940.0,0.36864494]
[1754897162232,2.02317062,121950.0,121940.0,0.36864494]
[1754897162532,1.27045062,121950.0,121940.0,0.36864494]
[1754897162735,2.02313062,121950.0,121940.0,0.36864494]
[1754897162933,1.27045062,121950.0,121940.0,0.36864494]
[1754897163234,2.02313062,121950.0,121940.0,0.58283494]
[1754897163426,1.90838062,121950.0,121940.0,0.53939494]
[1754897163626,1.97838062,121950.0,121940.0,0.34803915]
[1754897163935,1.97838062,121950.0,121940.0,0.26385915]
[1754897164530,1.97838062,121950.0,121940.0,0.20899915]
[1754897164733,1.97838062,121950.0,121940.0,0.44418617]
[1754897166628,1.97838062,121950.0,121940.0,0.38184915]
[1754897166629,1.68846281,121950.0,121940.0,0.38184915]
[1754897166822,0.62578062,121950.0,121940.0,0.72340782]
[1754897167025,0.33586281,121950.0,121940.0,0.72340782]
[1754897167230,1.08854281,121950.0,121940.0,0.72340782]
[1754897167936,1.08854281,121950.0,121940.0,0.53189255]
[1754897168627,1.08854281,121950.0,121940.0,0.76707957]
[1754897168835,1.15597281,121950.0,121940.0,0.76707957]
[1754897169128,1.08854281,121950.0,121940.0,0.69989957]
[1754897169334,1.15597281,121950.0,121940.0,0.76792957]
[1754897169727,0.44931281,121950.0,121940.0,0.76792957]
[1754897170032,1.20195281,121950.0,121940.0,0.76792957]
[1754897170927,1.49187062,121950.0,121940.0,0.53274255]
[1754897171128,1.49187062,121950.0,121940.0,0.45072915]
[1754897171333,1.49183062,121950.0,121940.0,0.45072915]
[1754897173339,1.49183062,121950.0,121940.0,0.30542915]
[1754897173531,1.49183062,121950.0,121940.0,0.45072915]
[1754897174230,1.85263062,121950.0,121940.0,0.45072915]
[1754897178737,1.85263062,121950.0,121940.0,0.30542915]
[1754897179043,1.85263062,121950.0,121940.0,0.26113915]
[1754897180234,1.10003062,121950.0,121940.0,0.13045915]
[1754897180439,1.85255062,121950.0,121940.0,0.17739915]
[1754897180640,1.10003062,121950.0,121940.0,0.17739915]
[1754897180842,1.85255062,121950.0,121940.0,0.17739915]
[1754897181034,1.85255062,121950.0,121940.0,0.41258617]
[1754897181233,1.10003062,121950.0,121940.0,0.41258617]
[1754897181434,1.85255062,121950.0,121940.0,0.41258617]
[1754897183039,1.85255062,121950.0,121940.0,0.17739915]
[1754897183745,1.85255062,121950.0,121940.0,0.3690044]
[1754897185041,1.85255062,121950.0,121940.0,0.17739915]
[1754897185244,1.10003062,121950.0,121940.0,0.17739915]
[1754897185444,1.85251062,121950.0,121940.0,0.17739915]
[1754897187244,1.85251062,121950.0,121940.0,0.12374714]
[1754897187449,2.21331062,121950.0,121940.0,0.12374714]
[1754897187650,2.21331062,121950.0,121940.0,0.17068714]
[1754897188551,2.21331062,121950.0,121940.0,0.36229239]
[1754897190848,1.92339281,121950.0,121940.0,0.36229239]
[1754897191048,2.21331062,121950.0,121940.0,0.36229239]
[1754897191744,1.46083062,121950.0,121940.0,0.36229239]
[1754897191946,1.17091281,121950.0,121940.0,0.36229239]
[1754897192145,2.21327062,121950.0,121940.0,0.36229239]
[1754897192952,2.21327062,121950.0,121940.0,0.43956239]
[1754897193652,1.46083062,121950.0,121940.0,0.43956239]
[1754897193859,2.21327062,121950.0,121940.0,0.36229239]
[1754897197161,2.21327062,121950.0,121940.0,0.39459239]
[1754897197361,2.21327062,121950.0,121940.0,0.52651239]
[1754897197566,1.46083062,121950.0,121940.0,0.36229239]
[1754897197757,2.21327062,121950.0,121940.0,0.35954309]
[1754897198362,2.21327062,121950.0,121940.0,0.34894309]
[1754897198663,2.21327062,121950.0,121940.0,0.31449828]
[1754897198862,1.46083062,121950.0,121940.0,0.31449828]
[1754897199062,2.21327062,121950.0,121940.0,0.31449828]
[1754897199564,2.21327062,121950.0,121940.0,0.47119434]
[1754897200365,2.21327062,121950.0,121940.0,0.43524434]
[1754897200565,1.46083062,121950.0,121940.0,0.51700434]
[1754897200764,2.21327062,121950.0,121940.0,0.5039659]
[1754897200960,2.21323062,121950.0,121940.0,0.49417413]
[1754897201460,2.21323062,121950.0,121940.0,0.40326482]
[1754897204065,2.21323062,121950.0,121940.0,0.35745482]
[1754897204871,2.21323062,121950.0,121940.0,0.32757482]
[1754897205170,2.21651062,121950.0,121940.0,0.31778311]
[1754897205468,2.21651062,121950.0,121940.0,0.3963102]
[1754897205669,2.21651062,121950.0,121940.0,0.37832026]
[1754897206770,1.46411062,121950.0,121940.0,0.12297392]
[1754897206970,2.21651062,121950.0,121940.0,0.12297392]
[1754897207374,2.21647062,121950.0,121940.0,0.16939392]
[1754897207676,2.21647062,121950.0,121940.0,0.12297392]
[1754897207971,2.21647062,121950.0,121940.0,0.16939392]
[1754897209675,2.21647062,121950.0,121940.0,0.14610763]
[1754897210071,2.21647062,121950.0,121940.0,0.13631579]
[1754897210373,2.21647062,121950.0,121940.0,0.08989579]
[1754897211071,2.21647062,121950.0,121940.0,0.1265239]
[1754897211664,1.46411062,121950.0,121940.0,0.1265239]
[1754897211871,1.30008632,121950.0,121920.0,0.21092287]
[1754897212075,0.2670131,121910.0,121900.0,0.3608]
[1754897212276,0.67094091,121910.0,121900.0,0.48913]
[1754897212578,0.9110831,121910.0,121900.0,0.7315464]
[1754897212967,0.9110831,121910.0,121900.0,0.73162502]
[1754897213171,0.1587631,121910.0,121900.0,0.73162502]
[1754897213376,0.9110831,121910.0,121900.0,0.73562502]
[1754897213978,0.9110831,121910.0,121900.0,0.86380502]
[1754897214668,1.0156831,121910.0,121900.0,0.86380502]
[1754897214873,1.0835731,121910.0,121900.0,0.86380502]
[1754897216576,1.0835731,121910.0,121900.0,0.85980502]
[1754897217174,1.37349091,121910.0,121900.0,0.85980502]
[1754897217470,1.37349091,121910.0,121900.0,1.09569321]
[1754897217678,1.37349091,121910.0,121900.0,1.00266355]
[1754897217877,1.37449091,121910.0,121900.0,1.00266355]
[1754897218477,1.37449091,121910.0,121900.0,1.29610153]
[1754897218669,1.37449091,121910.0,121900.0,1.48768504]
[1754897219376,1.37449091,121910.0,121900.0,1.25179685]
[1754897219674,1.0845731,121910.0,121900.0,1.25179685]
[1754897219981,1.37449091,121910.0,121900.0,1.06021334]
[1754897220572,1.37449091,121910.0,121900.0,0.76677536]
[1754897221174,1.0845731,121910.0,121900.0,0.76677536]
[1754897221366,1.37449091,121910.0,121900.0,0.76677536]
[1754897222184,0.0830331,121910.0,121900.0,0.85633509]
[1754897222482,0.8353131,121910.0,121900.0,0.93837489]
[1754897223480,0.9705231,121910.0,121900.0,0.93837489]
[1754897224480,0.3322531,121910.0,121900.0,0.85633509]
[1754897224673,1.0845331,121910.0,121900.0,0.85633509]
[1754897225180,1.37445091,121910.0,121900.0,0.85633509]
[1754897225377,1.37445091,121910.0,121900.0,0.85638383]
[1754897226081,1.0845331,121910.0,121900.0,0.85638383]
[1754897226278,0.3820231,121910.0,121900.0,0.93842363]
[1754897226480,1.1343031,121910.0,121900.0,0.93842363]
[1754897226678,1.1342631,121910.0,121900.0,0.85638383]
[1754897226879,1.42418091,121910.0,121900.0,0.85638383]
[1754897227983,1.1342631,121910.0,121900.0,0.85638383]
[1754897228283,1.42418091,121910.0,121900.0,0.85638383]
[1754897230984,1.1342631,121910.0,121900.0,0.85638383]
[1754897231194,1.42418091,121910.0,121900.0,0.85638383]
[1754897232580,0.97127091,121910.0,121900.0,0.17249383]
[1754897232773,1.78994091,121910.0,121900.0,0.31867604]
[1754897233173,1.03774091,121910.0,121900.0,0.49642604]
[1754897233378,1.03774091,121910.0,121900.0,0.57455604]
[1754897233680,1.78994091,121910.0,121900.0,0.52904604]
[1754897233886,1.78994091,121910.0,121900.0,0.31867604]
[1754897234486,1.03774091,121910.0,121900.0,0.31867604]
[1754897234689,1.78994091,121910.0,121900.0,0.0829341]
[1754897235080,1.03774091,121910.0,121900.0,0.04283894]
[1754897235287,1.03774091,121910.0,121900.0,0.16637574]
[1754897235582,1.78994091,121910.0,121900.0,0.16637574]
[1754897237587,1.78994091,121910.0,121900.0,0.35783214]
[1754897238675,1.78994091,121910.0,121900.0,0.17592323]
[1754897238881,1.78994091,121910.0,121900.0,0.12371839]
[1754897239283,1.03774091,121910.0,121900.0,0.12371839]
[1754897239488,1.78994091,121910.0,121900.0,0.12371839]
[1754897239680,1.78994091,121910.0,121900.0,0.1238232]
[1754897239882,1.78994091,121910.0,121900.0,0.08870701]
[1754897240180,1.78994091,121910.0,121900.0,0.06420991]
[1754897240782,1.78998091,121910.0,121900.0,0.06420991]
[1754897242291,1.78998091,121910.0,121900.0,0.01771882]
[1754897242488,1.78998091,121910.0,121900.0,2e-08]
[1754897242690,0.3190863,121890.0,121880.0,0.32412002]
[1754897242887,1.78851411,121890.0,121880.0,0.32412002]
[1754897243088,1.78851411,121890.0,121880.0,0.52939467]
[1754897243695,1.78851411,121890.0,121880.0,0.52949927]
[1754897244086,1.78851411,121890.0,121880.0,0.53049927]
[1754897244286,1.78851411,121890.0,121880.0,0.53349927]
[1754897244794,1.78851411,121890.0,121880.0,0.53049927]
[1754897244993,1.78951411,121890.0,121880.0,0.52949927]
[1754897245194,1.79151411,121890.0,121880.0,0.52949927]
[1754897247383,1.79147411,121890.0,121880.0,0.33626925]
[1754897247592,1.03927411,121890.0,121880.0,0.20537925]
[1754897247892,1.5015563,121890.0,121880.0,0.20537925]
[1754897248088,1.79147411,121890.0,121880.0,0.20537925]
[1754897248296,1.79147411,121890.0,121880.0,0.28485925]
[1754897248591,1.79147411,121890.0,121880.0,0.20537925]
[1754897249294,1.79147411,121890.0,121880.0,0.28485925]
[1754897249485,1.79147411,121890.0,121880.0,0.33036925]
[1754897250196,1.79147411,121890.0,121880.0,0.20537925]
[1754897250694,2.15231411,121890.0,121880.0,0.20537925]
[1754897252894,2.15231411,121890.0,121860.0,0.29966829]
[1754897252895,0.1351199,121870.0,121860.0,0.29966829]
[1754897253100,1.44959771,121870.0,121860.0,0.29966829]
[1754897253294,1.44959771,121870.0,121860.0,0.42270304]
[1754897253500,1.44959771,121870.0,121860.0,0.50474759]
[1754897254202,1.44959771,121870.0,121860.0,0.50583683]
[1754897254605,1.51505763,121870.0,121860.0,0.50583683]
[1754897255801,0.76281763,121870.0,121860.0,0.50583683]
[1754897256004,1.51509763,121870.0,121860.0,0.50583683]
[1754897257505,1.87589763,121870.0,121860.0,0.50583683]
[1754897258703,1.90690568,121870.0,121860.0,0.50583683]
[1754897258901,1.71083568,121870.0,121860.0,0.58790353]
[1754897259098,0.61557787,121870.0,121860.0,0.58790353]
[1754897259299,0.25477787,121870.0,121860.0,0.94870353]
[1754897259499,0.93080787,121870.0,121860.0,1.04250058]
[1754897259806,0.09646797,121870.0,121860.0,1.49653839]
[1754897260001,0.2462707,121880.0,121860.0,1.66066769]
[1754897260207,1.0806107,121880.0,121870.0,0.39858]
[1754897260409,1.11205696,121880.0,121870.0,0.39858]
[1754897260608,1.02999696,121880.0,121870.0,0.61230417]
[1754897260808,1.02999696,121880.0,121870.0,0.69436218]
[1754897261401,0.27771696,121880.0,121870.0,1.05516218]
[1754897261603,1.02995696,121880.0,121870.0,1.05516218]
[1754897261811,0.19565786,121880.0,121870.0,1.34507999]
[1754897262011,0.03154626,121880.0,121870.0,1.50918399]
[1754897262306,0.11459946,121880.0,121870.0,1.50918399]
[1754897263909,0.17986135,121880.0,121870.0,1.50918399]
[1754897264109,0.17986135,121880.0,121870.0,1.51018399]
[1754897264310,0.17986135,121880.0,121870.0,1.51318399]
[1754897264705,0.17986135,121880.0,121870.0,1.34907999]
[1754897264906,0.17986135,121880.0,121870.0,1.58482193]
[1754897266402,0.17986135,121880.0,121870.0,1.29490412]
[1754897266909,0.50182916,121880.0,121870.0,1.29490412]
[1754897267112,0.74087916,121880.0,121870.0,1.29490412]
[1754897267405,0.79623916,121880.0,121870.0,1.29490412]
[1754897267709,0.75025916,121880.0,121870.0,1.29490412]
[1754897267906,0.79623916,121880.0,121870.0,1.29490412]
[1754897268312,0.79623916,121880.0,121870.0,1.29390412]
[1754897269012,0.79623916,121880.0,121870.0,1.05816218]
[1754897269511,1.54839916,121880.0,121870.0,0.93005316]
[1754897269708,1.54839916,121880.0,121870.0,0.65968316]
[1754897270108,1.54839916,121880.0,121870.0,0.84899316]
[1754897270810,1.54939916,121880.0,121870.0,0.84899316]
[1754897271208,1.54939916,121880.0,121870.0,0.53147316]
[1754897271413,1.44795697,121880.0,121870.0,0.54727218]
[1754897271713,1.91019916,121880.0,121870.0,0.52135428]
[1754897271914,2.20011697,121880.0,121870.0,0.20483428]
[1754897272410,1.44795697,121880.0,121870.0,0.20483428]
[1754897272610,2.20011697,121880.0,121870.0,0.20483428]
[1754897274819,1.62028135,121880.0,121870.0,0.20483428]
[1754897275119,1.91019916,121880.0,121870.0,0.52135428]
[1754897275314,1.91019916,121880.0,121870.0,0.45632428]
[1754897276014,1.91019916,121880.0,121870.0,0.52135428]
[1754897276412,1.91019916,121880.0,121870.0,0.45632428]
[1754897276616,1.91019916,121880.0,121870.0,0.52135428]
[1754897276818,1.15803916,121880.0,121870.0,0.52135428]
[1754897277114,0.79723916,121880.0,121870.0,0.52135428]
[1754897277321,1.91019916,121880.0,121870.0,0.52135428]
[1754897278522,1.15803916,121880.0,121870.0,0.52135428]
[1754897278721,1.91019916,121880.0,121870.0,0.30013428]
[1754897279016,1.91019916,121880.0,121870.0,0.20483428]
[1754897279222,2.20011697,121880.0,121870.0,0.20483428]
[1754897282720,2.20011697,121880.0,121870.0,0.52135428]
[1754897283024,1.91019916,121880.0,121870.0,0.52135428]
[1754897284126,1.91019916,121880.0,121870.0,0.33204428]
[1754897285122,1.91019916,121880.0,121870.0,0.30013428]
[1754897285426,1.91019916,121880.0,121870.0,0.20483428]
[1754897286416,1.91019916,121880.0,121870.0,0.42400428]
[1754897286622,1.91019916,121880.0,121870.0,0.49004428]
[1754897287228,1.91019916,121880.0,121870.0,0.52144428]
[1754897287524,1.91019916,121880.0,121870.0,0.75713526]
[1754897288629,1.91019916,121880.0,121870.0,0.56697526]
[1754897289227,1.91019916,121880.0,121870.0,0.69109526]
[1754897289526,1.91019916,121880.0,121870.0,0.45540428]
[1754897290132,1.15803916,121880.0,121870.0,0.52144428]
[1754897290334,1.91015916,121880.0,121870.0,0.52144428]
[1754897291235,1.15803916,121880.0,121870.0,0.33128428]
[1754897291424,1.91015916,121880.0,121870.0,0.20483428]
[1754897291626,2.20007697,121880.0,121870.0,0.20483428]
[1754897291825,0.2124803,121870.0,121860.0,8.924e-05]
[1754897292025,1.05335811,121870.0,121860.0,0.22148924]
[1754897292323,1.05335811,121870.0,121860.0,0.44186324]
[1754897292527,1.80547811,121870.0,121860.0,0.52391452]
[1754897293431,1.80547811,121870.0,121860.0,0.52491452]
[1754897294927,1.05335811,121870.0,121860.0,0.45887452]
[1754897295128,1.05335811,121870.0,121860.0,0.52491452]
[1754897295129,1.80547811,121870.0,121860.0,0.52491452]
[1754897295329,1.05335811,121870.0,121860.0,0.52491452]
[1754897295533,1.80547811,121870.0,121860.0,0.52491452]
[1754897297530,1.05335811,121870.0,121860.0,0.52491452]
[1754897297736,1.5155603,121870.0,121860.0,0.52491452]
[1754897298436,1.80547811,121870.0,121860.0,0.52491452]
[1754897300536,0.7634403,121870.0,121860.0,0.52491452]
[1754897300736,1.80543811,121870.0,121860.0,0.52491452]
[1754897301338,1.05335811,121870.0,121860.0,0.52491452]
[1754897301532,1.80543811,121870.0,121860.0,0.52491452]
[1754897302636,1.5155203,121870.0,121860.0,0.52491452]
[1754897302838,1.80543811,121870.0,121860.0,0.52491452]
[1754897303940,1.44463811,121870.0,121860.0,0.52491452]
[1754897304642,1.1547203,121870.0,121860.0,0.52491452]
[1754897304842,1.44463811,121870.0,121860.0,0.52491452]
[1754897305445,0.69255811,121870.0,121860.0,0.52491452]
[1754897305645,1.44463811,121870.0,121860.0,0.52491452]
[1754897307749,1.44459811,121870.0,121860.0,0.52491452]
[1754897312249,1.44459811,121870.0,121860.0,0.76100995]
[1754897312749,1.44459811,121870.0,121860.0,0.69496995]
[1754897313758,0.69255811,121870.0,121860.0,0.69496995]
[1754897313954,1.44455811,121870.0,121860.0,0.76100995]
[1754897314252,1.80535811,121870.0,121860.0,0.20607452]
[1754897315245,1.80535811,121870.0,121860.0,0.52491452]
[1754897315444,1.80535811,121870.0,121860.0,0.45887452]
[1754897316254,1.80535811,121870.0,121860.0,0.20607452]
[1754897318454,1.80535811,121870.0,121860.0,0.44221183]
[1754897318852,1.80535811,121870.0,121860.0,0.28155591]
[1754897319054,1.05335811,121870.0,121860.0,0.2018575]
[1754897319353,1.80535811,121870.0,121860.0,0.40647366]
[1754897319943,1.80535811,121870.0,121860.0,0.40655804]
[1754897320349,1.05335811,121870.0,121860.0,0.40655804]
[1754897320553,1.05335811,121870.0,121860.0,0.20470054]
[1754897320943,1.80535811,121870.0,121860.0,0.20470054]
[1754897321451,1.05335811,121870.0,121860.0,0.20470054]
[1754897322053,1.80539811,121870.0,121860.0,0.20470054]
[1754897322354,1.80539811,121870.0,121860.0,0.16289054]
[1754897322556,1.80539811,121870.0,121860.0,0.13685734]
[1754897323061,1.80539811,121870.0,121860.0,0.12585734]
[1754897323354,1.80539811,121870.0,121860.0,0.08917853]
[1754897323758,1.80539811,121870.0,121860.0,0.07895473]
[1754897323954,1.80539811,121870.0,121860.0,0.14900629]
[1754897325359,1.05335811,121870.0,121860.0,0.14900629]
[1754897325656,1.80539811,121870.0,121860.0,0.14900629]
[1754897327162,1.80539811,121870.0,121860.0,0.12383629]
[1754897327457,1.80539811,121870.0,121860.0,0.15917516]
[1754897327860,1.05335811,121870.0,121860.0,0.15917516]
[1754897328158,1.80539811,121870.0,121860.0,0.14811715]
[1754897328358,1.80539811,121870.0,121860.0,0.10449362]
[1754897328655,1.80539811,121870.0,121860.0,0.08039362]
[1754897328862,1.80539811,121870.0,121860.0,0.12292308]
[1754897329361,1.80539811,121870.0,121860.0,8e-08]
[1754897330362,0.2118038,121850.0,121840.0,0.32219]
[1754897330657,1.80902161,121850.0,121840.0,0.32219]
[1754897330862,1.80902161,121850.0,121840.0,0.33512917]